Workbook

Sheet Lessons Info
A1: Student: R | G1: 2018
G2: English
G3: January | L3: February | Q3: March | V3: April | AB3: May | AG3: June | AL3: July | AR3: August | AW3: September | BB3: October | BG3: November | BL3: December
A4: Student name | B4: Teachers names | D4: Lessons Left | E4: Overall Lessons Finished | F4: Monday | AG4: 1 | AH4: 2 | AI4: 3
A5: xxx | B5: English | C5: Chinese | F5: Tuesday
B6: yyy | C6: zzz | F6: Wednesday
F7: Thursday
F8: Friday
F9: Saturday
F10: Sunday
D11: =SUMIF([1]!Таблица3[LANGUAGE], Lang_English, [1]!Таблица3[No. of LESSONS ])-E11 ->  | E11: =SUM(K11,P11,U11,AA11,AF11,AK11,AQ11,AV11,BA11,BF11,BK11,BQ11) -> 6 | F11: Monthly totals | K11: =SUM(G4:K10) -> 0 | P11: =SUM(L4:P10) -> 0 | U11: =SUM(Q4:U10) -> 0 | AA11: =SUM(V4:AA10) -> 0 | AF11: =SUM(AB4:AF10) -> 0 | AK11: =SUM(AG4:AK10) -> 6 | AQ11: =SUM(AL4:AQ10) -> 0 | AV11: =SUM(AR4:AV10) -> 0 | BA11: =SUM(AW4:BA10) -> 0 | BF11: =SUM(BB4:BF10) -> 0 | BK11: =SUM(BG4:BK10) -> 0 | BQ11: =SUM(BL4:BQ10) -> 0
D12: =D11+D21 ->  | G12: Chinese
G13: January | L13: February | Q13: March | V13: April | AB13: May | AG13: June | AL13: July | AR13: August | AW13: September | BB13: October | BG13: November | BL13: December
D14: Lessons Left | E14: Overall Lessons Finished | F14: Monday
F15: Tuesday
F16: Wednesday
F17: Thursday
F18: Friday
F19: Saturday
F20: Sunday
D21: =SUMIF([1]!Таблица3[LANGUAGE], Lang_Chinese, [1]!Таблица3[No. of LESSONS ])-E21 ->  | E21: =SUM(K21,P21,U21,AA21,AF21,AK21,AQ21,AV21,BA21,BF21,BK21,BQ21) -> 0 | F21: Monthly totals | K21: =SUM(G14:K20) -> 0 | P21: =SUM(L14:P20) -> 0 | U21: =SUM(Q14:U20) -> 0 | AA21: =SUM(V14:AA20) -> 0 | AF21: =SUM(AB14:AF20) -> 0 | AK21: =SUM(AG14:AK20) -> 0 | AQ21: =SUM(AL14:AQ20) -> 0 | AV21: =SUM(AR14:AV20) -> 0 | BA21: =SUM(AW14:BA20) -> 0 | BF21: =SUM(BB14:BF20) -> 0 | BK21: =SUM(BG14:BK20) -> 0 | BQ21: =SUM(BL14:BQ20) -> 0
AG24: =COLUMN() -> 33

Sheet Лист1
A1: Student: R | G1: 2018
G2: English
G3: January | L3: February | Q3: March | V3: April | AB3: May | AG3: June | AL3: July | AR3: August | AW3: September | BB3: October | BG3: November | BL3: December
A4: Student name | B4: Teachers names | D4: Lessons Left | E4: Overall Lessons Finished | F4: Monday | G4: 3 | H4: 8 | I4: 7 | J4: 2 | K4: 9 | L4: 6 | M4: 3 | N4: 4 | O4: 0 | P4: 7 | Q4: 5 | R4: 6 | S4: 10 | T4: 5 | U4: 1 | V4: 3 | W4: 4 | X4: 3 | Y4: 9 | Z4: 9 | AA4: 5 | AB4: 9 | AC4: 3 | AD4: 2 | AE4: 7 | AF4: 9 | AG4: 3 | AH4: 1 | AI4: 0 | AJ4: 2 | AK4: 4 | AL4: 6 | AM4: 9 | AN4: 4 | AO4: 4 | AP4: 8 | AQ4: 7 | AR4: 4 | AS4: 9 | AT4: 5 | AU4: 5 | AV4: 5 | AW4: 8 | AX4: 3 | AY4: 0 | AZ4: 1 | BA4: 9 | BB4: 10 | BC4: 8 | BD4: 1 | BE4: 1 | BF4: 10 | BG4: 6 | BH4: 1 | BI4: 10 | BJ4: 1 | BK4: 0 | BL4: 3 | BM4: 6 | BN4: 1 | BO4: 9 | BP4: 1 | BQ4: 3
A5: xxx | B5: English | C5: Chinese | F5: Tuesday | G5: 4 | H5: 1 | I5: 10 | J5: 8 | K5: 9 | L5: 1 | M5: 0 | N5: 5 | O5: 0 | P5: 9 | Q5: 7 | R5: 7 | S5: 2 | T5: 10 | U5: 10 | V5: 8 | W5: 8 | X5: 4 | Y5: 8 | Z5: 3 | AA5: 0 | AB5: 9 | AC5: 0 | AD5: 4 | AE5: 0 | AF5: 8 | AG5: 1 | AH5: 8 | AI5: 9 | AJ5: 1 | AK5: 1 | AL5: 9 | AM5: 9 | AN5: 3 | AO5: 7 | AP5: 2 | AQ5: 4 | AR5: 8 | AS5: 7 | AT5: 4 | AU5: 10 | AV5: 7 | AW5: 8 | AX5: 3 | AY5: 10 | AZ5: 5 | BA5: 3 | BB5: 6 | BC5: 8 | BD5: 9 | BE5: 0 | BF5: 1 | BG5: 1 | BH5: 8 | BI5: 6 | BJ5: 9 | BK5: 9 | BL5: 1 | BM5: 4 | BN5: 1 | BO5: 1 | BP5: 7 | BQ5: 7
B6: yyy | C6: zzz | F6: Wednesday | G6: 4 | H6: 6 | I6: 1 | J6: 7 | K6: 10 | L6: 2 | M6: 8 | N6: 6 | O6: 7 | P6: 4 | Q6: 9 | R6: 2 | S6: 3 | T6: 1 | U6: 7 | V6: 2 | W6: 5 | X6: 2 | Y6: 5 | Z6: 2 | AA6: 0 | AB6: 7 | AC6: 7 | AD6: 10 | AE6: 0 | AF6: 8 | AG6: 2 | AH6: 2 | AI6: 6 | AJ6: 4 | AK6: 6 | AL6: 3 | AM6: 8 | AN6: 3 | AO6: 8 | AP6: 10 | AQ6: 3 | AR6: 7 | AS6: 5 | AT6: 6 | AU6: 1 | AV6: 1 | AW6: 5 | AX6: 3 | AY6: 6 | AZ6: 3 | BA6: 5 | BB6: 4 | BC6: 4 | BD6: 10 | BE6: 5 | BF6: 7 | BG6: 9 | BH6: 7 | BI6: 2 | BJ6: 1 | BK6: 4 | BL6: 6 | BM6: 3 | BN6: 4 | BO6: 9 | BP6: 2 | BQ6: 7
F7: Thursday | G7: 7 | H7: 5 | I7: 10 | J7: 10 | K7: 7 | L7: 4 | M7: 1 | N7: 3 | O7: 6 | P7: 3 | Q7: 3 | R7: 6 | S7: 1 | T7: 2 | U7: 3 | V7: 3 | W7: 0 | X7: 0 | Y7: 10 | Z7: 0 | AA7: 3 | AB7: 8 | AC7: 1 | AD7: 6 | AE7: 2 | AF7: 0 | AG7: 9 | AH7: 2 | AI7: 6 | AJ7: 4 | AK7: 5 | AL7: 1 | AM7: 6 | AN7: 5 | AO7: 9 | AP7: 6 | AQ7: 2 | AR7: 0 | AS7: 1 | AT7: 3 | AU7: 0 | AV7: 2 | AW7: 7 | AX7: 7 | AY7: 5 | AZ7: 3 | BA7: 4 | BB7: 9 | BC7: 5 | BD7: 3 | BE7: 6 | BF7: 3 | BG7: 0 | BH7: 1 | BI7: 8 | BJ7: 7 | BK7: 5 | BL7: 6 | BM7: 2 | BN7: 6 | BO7: 5 | BP7: 5 | BQ7: 7
F8: Friday | G8: 4 | H8: 5 | I8: 5 | J8: 3 | K8: 7 | L8: 6 | M8: 10 | N8: 4 | O8: 7 | P8: 7 | Q8: 0 | R8: 0 | S8: 8 | T8: 0 | U8: 5 | V8: 6 | W8: 2 | X8: 5 | Y8: 8 | Z8: 2 | AA8: 5 | AB8: 0 | AC8: 0 | AD8: 6 | AE8: 5 | AF8: 4 | AG8: 1 | AH8: 10 | AI8: 8 | AJ8: 4 | AK8: 0 | AL8: 2 | AM8: 3 | AN8: 8 | AO8: 3 | AP8: 8 | AQ8: 3 | AR8: 9 | AS8: 9 | AT8: 10 | AU8: 1 | AV8: 6 | AW8: 9 | AX8: 1 | AY8: 0 | AZ8: 9 | BA8: 3 | BB8: 8 | BC8: 0 | BD8: 3 | BE8: 7 | BF8: 0 | BG8: 4 | BH8: 2 | BI8: 7 | BJ8: 1 | BK8: 2 | BL8: 1 | BM8: 1 | BN8: 2 | BO8: 3 | BP8: 10 | BQ8: 7
F9: Saturday | G9: 9 | H9: 4 | I9: 6 | J9: 5 | K9: 9 | L9: 8 | M9: 2 | N9: 8 | O9: 2 | P9: 6 | Q9: 10 | R9: 6 | S9: 7 | T9: 5 | U9: 7 | V9: 2 | W9: 4 | X9: 3 | Y9: 7 | Z9: 9 | AA9: 5 | AB9: 6 | AC9: 0 | AD9: 0 | AE9: 10 | AF9: 6 | AG9: 9 | AH9: 9 | AI9: 10 | AJ9: 8 | AK9: 1 | AL9: 3 | AM9: 10 | AN9: 0 | AO9: 8 | AP9: 5 | AQ9: 10 | AR9: 10 | AS9: 7 | AT9: 8 | AU9: 5 | AV9: 7 | AW9: 9 | AX9: 8 | AY9: 10 | AZ9: 9 | BA9: 4 | BB9: 1 | BC9: 6 | BD9: 10 | BE9: 2 | BF9: 9 | BG9: 4 | BH9: 6 | BI9: 5 | BJ9: 1 | BK9: 8 | BL9: 9 | BM9: 4 | BN9: 5 | BO9: 4 | BP9: 9 | BQ9: 9
F10: Sunday | G10: 9 | H10: 1 | I10: 2 | J10: 2 | K10: 4 | L10: 3 | M10: 8 | N10: 8 | O10: 3 | P10: 5 | Q10: 0 | R10: 10 | S10: 0 | T10: 2 | U10: 1 | V10: 1 | W10: 5 | X10: 0 | Y10: 8 | Z10: 1 | AA10: 1 | AB10: 3 | AC10: 9 | AD10: 9 | AE10: 0 | AF10: 8 | AG10: 6 | AH10: 5 | AI10: 3 | AJ10: 8 | AK10: 10 | AL10: 10 | AM10: 8 | AN10: 2 | AO10: 3 | AP10: 5 | AQ10: 7 | AR10: 3 | AS10: 3 | AT10: 8 | AU10: 5 | AV10: 2 | AW10: 2 | AX10: 10 | AY10: 5 | AZ10: 2 | BA10: 9 | BB10: 5 | BC10: 10 | BD10: 8 | BE10: 2 | BF10: 10 | BG10: 8 | BH10: 9 | BI10: 10 | BJ10: 7 | BK10: 8 | BL10: 8 | BM10: 6 | BN10: 7 | BO10: 5 | BP10: 7 | BQ10: 6
D11: =SUMIF([1]!Таблица3[LANGUAGE], Lang_English, [1]!Таблица3[No. of LESSONS ])-E11 ->  | E11: =SUM(K11,P11,U11,AA11,AF11,AK11,AQ11,AV11,BA11,BF11,BK11,BQ11) -> 2216 | F11: Monthly totals | K11: =SUM(G4:K10) -> 203 | P11: =SUM(L4:P10) -> 166 | U11: =SUM(Q4:U10) -> 161 | AA11: =SUM(V4:AA10) -> 170 | AF11: =SUM(AB4:AF10) -> 166 | AK11: =SUM(AG4:AK10) -> 168 | AQ11: =SUM(AL4:AQ10) -> 234 | AV11: =SUM(AR4:AV10) -> 183 | BA11: =SUM(AW4:BA10) -> 188 | BF11: =SUM(BB4:BF10) -> 191 | BK11: =SUM(BG4:BK10) -> 177 | BQ11: =SUM(BL4:BQ10) -> 209
D12: =D11+D21 ->  | G12: Chinese
G13: January | L13: February | Q13: March | V13: April | AB13: May | AG13: June | AL13: July | AR13: August | AW13: September | BB13: October | BG13: November | BL13: December
D14: Lessons Left | E14: Overall Lessons Finished | F14: Monday
F15: Tuesday
F16: Wednesday
F17: Thursday
F18: Friday
F19: Saturday
F20: Sunday
D21: =SUMIF([1]!Таблица3[LANGUAGE], Lang_Chinese, [1]!Таблица3[No. of LESSONS ])-E21 ->  | E21: =SUM(K21,P21,U21,AA21,AF21,AK21,AQ21,AV21,BA21,BF21,BK21,BQ21) -> 0 | F21: Monthly totals | K21: =SUM(G14:K20) -> 0 | P21: =SUM(L14:P20) -> 0 | U21: =SUM(Q14:U20) -> 0 | AA21: =SUM(V14:AA20) -> 0 | AF21: =SUM(AB14:AF20) -> 0 | AK21: =SUM(AG14:AK20) -> 0 | AQ21: =SUM(AL14:AQ20) -> 0 | AV21: =SUM(AR14:AV20) -> 0 | BA21: =SUM(AW14:BA20) -> 0 | BF21: =SUM(BB14:BF20) -> 0 | BK21: =SUM(BG14:BK20) -> 0 | BQ21: =SUM(BL14:BQ20) -> 0
AG24: =COLUMN() -> 33
